bitfinex/quotes_SOLUSD_20251218
["timestamp","ask_amount","ask_price","bid_price","bid_amount"]
[1766029943722,0.69,123.83,123.8,18.32994492]
[1766029945437,0.69,123.82,123.8,9.52]
[1766029945648,2.85804232,123.83,123.8,9.52]
[1766029946447,0.69,123.83,123.8,9.52]
[1766029949348,2.85804232,123.83,123.8,9.52]
[1766029950523,0.69,123.83,123.8,9.52]
[1766029952044,20.78073495,123.84,123.8,9.52]
[1766029952045,12.70571528,123.84,123.81,8.80994492]
[1766029952342,0.69,123.83,123.81,9.46994492]
[1766029953046,0.69,123.83,123.81,8.80994492]
[1766029954047,0.69,123.83,123.8,8.86]
[1766029954235,0.69,123.83,123.8,9.52]
[1766029956548,0.69,123.83,123.78,8.80994492]
[1766029956549,0.69,123.81,123.78,8.80994492]
[1766029956723,0.69,123.8,123.78,8.80994492]
[1766029957128,0.69,123.8,123.77,0.66]
[1766029959146,2.16804232,123.81,123.77,0.66]
[1766029959455,2.85804232,123.81,123.78,0.66]
[1766029959951,2.85942673,123.81,123.78,0.66]
[1766029962155,2.16942673,123.81,123.77,8.80994492]
[1766029962460,0.67,123.8,123.77,0.67]
[1766029965060,2.83942673,123.82,123.78,0.67]
[1766029965253,19.39767296,123.84,123.82,9.47994492]
[1766029965254,0.1,123.84,123.82,9.47994492]
[1766029965466,0.77,123.84,123.82,8.80994492]
[1766029966760,0.1,123.84,123.82,0.67]
[1766029967858,0.77,123.84,123.82,0.67]
[1766029969337,0.77,123.84,123.81,11.64937165]
[1766029969537,0.77,123.84,123.81,9.47994492]
[1766029970259,0.77,123.84,123.82,0.67]
[1766029970441,0.1,123.84,123.82,0.67]
[1766029971856,0.77,123.84,123.82,0.67]
[1766029973137,0.1,123.86,123.84,0.67]
[1766029973336,10.53767296,123.86,123.84,0.67]
[1766029973551,0.1,123.86,123.85,8.80994492]
[1766029973756,0.1,123.86,123.85,9.47994492]
[1766029974164,0.1,123.86,123.84,8.80994492]
[1766029974341,0.1,123.86,123.84,9.47994492]
[1766029976562,0.67,123.85,123.82,8.74597078]
[1766029976745,0.67,123.85,123.83,9.47994492]
[1766029976942,0.67,123.85,123.82,9.53]
[1766029977562,2.83942673,123.85,123.82,9.53]
[1766029979951,0.67,123.84,123.82,9.53]
[1766029980267,0.67,123.84,123.8,19.05662724]
[1766029980465,0.67,123.84,123.79,20.19488525]
[1766029980466,2.16942673,123.83,123.79,9.47994492]
[1766029980654,0.67,123.82,123.79,9.47994492]
[1766029981554,0.67,123.83,123.8,0.67]
[1766029982568,13.27709969,123.84,123.8,0.67]
[1766029982952,11.10767296,123.84,123.8,2.16942673]
[1766029983262,11.10767296,123.84,123.82,8.80994492]
[1766029983565,10.43767296,123.84,123.82,9.47994492]
[1766029983864,11.10767296,123.84,123.82,8.80994492]
[1766029984046,11.10767296,123.84,123.81,9.47994492]
[1766029984375,11.10767296,123.84,123.82,0.67]
[1766029985461,11.10767296,123.84,123.81,9.47994492]
[1766029985777,11.10767296,123.84,123.82,0.67]
[1766029985950,10.43767296,123.84,123.82,0.67]
[1766029989767,10.43767296,123.84,123.81,8.80994492]
[1766029990067,0.67,123.83,123.81,8.80994492]
[1766029990268,0.67,123.83,123.81,9.47994492]
[1766029990451,11.10767296,123.84,123.81,9.47994492]
[1766029992073,10.43767296,123.84,123.81,8.80994492]
[1766029992372,0.68,123.83,123.81,8.80994492]
[1766029992763,0.68,123.82,123.78,11.02942673]
[1766029992959,0.68,123.82,123.8,0.71]
[1766029994574,0.68,123.83,123.8,0.71]
[1766030003089,0.68,123.83,123.8,8.78752106]
[1766030003376,0.68,123.83,123.8,0.71]
[1766030003561,10.43767296,123.83,123.81,9.51994492]
[1766030003762,11.11767296,123.84,123.81,8.80994492]
[1766030003981,0.68,123.84,123.82,0.71]
[1766030004164,0.68,123.84,123.81,9.51994492]
[1766030005873,10.43767296,123.84,123.82,0.71]
[1766030006191,0.78,123.86,123.83,9.51994492]
[1766030006565,11.21767296,123.86,123.83,17.59546842]
[1766030007255,11.21767296,123.86,123.83,20.98365131]
[1766030008253,11.21767296,123.86,123.83,17.59546842]
[1766030009062,0.68,123.84,123.82,8.80994492]
[1766030009773,18.61135102,123.86,123.84,9.51994492]
[1766030009774,10.53767296,123.86,123.84,9.51994492]
[1766030010172,10.53767296,123.86,123.85,9.51994492]
[1766030010173,0.1,123.86,123.85,9.51994492]
[1766030011086,18.60974963,123.9,123.86,8.80994492]
[1766030011289,4.06818289,123.92,123.89,0.71]
[1766030011461,11.11767296,123.91,123.88,9.51994492]
[1766030011662,0.68,123.91,123.88,9.51994492]
[1766030014989,0.68,123.9,123.88,8.80994492]
[1766030015484,0.68,123.9,123.88,9.51994492]
[1766030015860,0.68,123.9,123.88,8.80994492]
[1766030022766,0.69,123.89,123.88,8.80994492]
[1766030023400,11.12767296,123.9,123.88,8.80994492]
[1766030023902,0.69,123.89,123.88,8.80994492]
[1766030024071,3.98818289,123.89,123.85,0.67]
[1766030024267,0.6,123.88,123.85,0.67]
[1766030024995,0.6,123.88,123.84,27.37256085]
[1766030025198,3.38818289,123.88,123.84,19.29767296]
[1766030025495,0.6,123.87,123.84,19.96767296]
[1766030025883,0.6,123.87,123.84,9.53]
[1766030026085,3.98818289,123.88,123.85,9.47994492]
[1766030026302,0.6,123.87,123.85,8.80994492]
[1766030026879,0.6,123.87,123.85,9.47994492]
[1766030027503,0.6,123.87,123.85,8.80994492]
[1766030027684,0.6,123.87,123.84,9.53]
[1766030027685,3.38681626,123.87,123.84,9.53]
[1766030027887,0.6,123.86,123.84,9.53]
[1766030028082,3.98681626,123.86,123.83,9.47994492]
[1766030028285,3.98681626,123.85,123.82,9.53]
[1766030028795,3.38681626,123.85,123.82,8.86]
[1766030029106,8.86,123.87,123.83,0.67]
[1766030029107,0.6,123.86,123.83,0.67]
[1766030029281,3.98681626,123.85,123.82,9.53]
[1766030031298,3.98681626,123.85,123.82,0.67]
[1766030035512,0.6,123.85,123.82,0.67]
[1766030037114,0.6,123.85,123.82,4.05681626]
[1766030039716,0.6,123.85,123.82,0.67]
[1766030041100,0.6,123.85,123.81,9.47994492]
[1766030041294,0.6,123.85,123.81,12.86676118]
[1766030041609,0.6,123.85,123.81,9.47994492]
[1766030042311,8.07429213,123.85,123.81,9.47994492]
[1766030042606,0.6,123.84,123.81,9.47994492]
[1766030043202,0.6,123.84,123.81,12.86676118]
[1766030048022,0.6,123.85,123.77,0.67]
[1766030048232,0.6,123.85,123.82,0.67]
[1766030048700,0.6,123.85,123.8,0.67]
[1766030048901,0.6,123.85,123.81,3.38681626]
[1766030049201,0.6,123.85,123.81,4.05681626]
[1766030050118,30.63223154,123.86,123.83,3.38681626]
[1766030050427,0.6,123.87,123.84,4.05681626]
[1766030051495,19.29767296,123.88,123.85,12.19676118]
[1766030051701,3.38681626,123.9,123.86,0.7]
[1766030051907,11.03767296,123.88,123.86,0.7]
[1766030052102,11.03767296,123.88,123.85,4.07681626]
[1766030052330,11.03767296,123.88,123.83,12.88676118]
[1766030052331,0.6,123.86,123.83,12.88676118]
[1766030055029,8.07302244,123.87,123.83,12.19676118]
[1766030055334,0.6,123.87,123.84,0.69]
[1766030055936,0.6,123.87,123.84,4.07681626]
[1766030056331,8.67302723,123.87,123.84,0.69]
[1766030056537,0.6,123.86,123.82,3.38681626]
[1766030056708,0.6,123.86,123.83,0.69]
[1766030057033,0.6,123.86,123.82,4.07681626]
[1766030057334,0.6,123.86,123.83,0.69]
[1766030058922,0.6,123.85,123.83,0.69]
[1766030059439,8.67385593,123.86,123.83,0.69]
[1766030059609,0.6,123.85,123.83,0.69]
[1766030061832,8.67430305,123.85,123.82,2.8577195]
[1766030062345,0.6,123.84,123.81,11.66766442]
[1766030062540,8.67430305,123.85,123.82,0.69]
[1766030063038,8.07430305,123.85,123.82,0.69]
[1766030063245,0.6,123.84,123.82,0.69]
[1766030064027,8.07430305,123.85,123.82,0.69]
[1766030064231,8.67430305,123.85,123.82,0.69]
[1766030068043,0.6,123.84,123.82,0.69]
[1766030068347,8.67493957,123.84,123.81,11.66766442]
[1766030068850,0.6,123.83,123.81,2.1677195]
[1766030069026,0.6,123.83,123.8,0.69]
[1766030069027,0.6,123.83,123.8,2.8577195]
[1766030069226,0.6,123.83,123.8,2.1677195]
[1766030069451,0.6,123.83,123.8,2.8577195]
[1766030073338,0.6,123.82,123.8,2.8577195]
[1766030073839,0.6,123.82,123.8,0.69]
[1766030074043,0.6,123.82,123.79,20.52766442]
[1766030074632,0.6,123.82,123.79,11.66766442]
[1766030074850,0.6,123.82,123.78,2.8577195]
[1766030075433,0.6,123.81,123.78,2.8577195]
[1766030076855,0.6,123.81,123.78,0.69]
[1766030077049,0.6,123.81,123.78,2.8577195]
[1766030077259,0.6,123.81,123.77,2.8577195]
[1766030077456,0.6,123.8,123.76,9.49994492]
[1766030077651,0.6,123.8,123.76,11.66766442]
[1766030078353,0.6,123.8,123.77,0.69]
[1766030078550,42.80075882,123.82,123.79,0.69]
[1766030078762,0.6,123.81,123.78,2.8577195]
[1766030079061,0.6,123.83,123.8,2.8577195]
[1766030079567,16.93517993,123.84,123.8,2.1677195]
[1766030079737,16.93517993,123.84,123.82,0.69]
[1766030079738,8.86,123.84,123.82,0.69]
[1766030080645,9.46,123.84,123.82,0.69]
[1766030081457,0.6,123.84,123.82,0.69]
[1766030082662,0.6,123.84,123.81,2.8477195]
[1766030084770,0.6,123.84,123.82,2.8477195]
[1766030084945,0.6,123.84,123.82,0.68]
[1766030085145,19.11200531,123.85,123.82,0.68]
[1766030085551,0.6,123.84,123.82,0.68]
[1766030085864,19.11200531,123.85,123.82,2.8477195]
[1766030086066,11.03767296,123.85,123.82,2.8477195]
[1766030087562,11.03767296,123.85,123.82,0.68]
[1766030088064,19.11223333,123.85,123.82,0.68]
[1766030088262,11.03767296,123.85,123.82,0.68]
[1766030090146,10.43767296,123.83,123.82,0.68]
[1766030092559,10.43767296,123.83,123.81,2.1677195]
[1766030092752,10.43767296,123.83,123.81,2.8477195]
[1766030093469,10.43767296,123.83,123.82,0.68]
[1766030094270,10.43767296,123.82,123.81,0.68]
[1766030094859,10.43767296,123.82,123.81,9.48994492]
[1766030096574,0.6,123.84,123.81,11.65823567]
[1766030096750,0.6,123.84,123.81,10.97823567]
[1766030096954,0.6,123.84,123.82,0.68]
[1766030098680,10.43767296,123.83,123.82,0.68]
[1766030101395,10.43767296,123.82,123.81,9.48994492]
[1766030103178,8.07450068,123.85,123.81,10.97823567]
[1766030103672,8.07450068,123.85,123.82,0.68]
[1766030103879,8.67450068,123.85,123.82,0.68]
[1766030104868,8.07450068,123.85,123.82,0.68]
[1766030105073,0.6,123.87,123.84,0.68]
[1766030105385,9.46,123.87,123.84,0.68]
[1766030105580,8.07267627,123.88,123.84,2.16829075]
[1766030105888,8.67267627,123.88,123.85,0.68]
[1766030106276,19.11034923,123.88,123.85,0.68]
[1766030107178,18.51034923,123.88,123.85,0.68]
[1766030107479,19.11034923,123.88,123.85,0.68]
[1766030113578,19.10892358,123.9,123.87,0.66]
[1766030113775,11.03767296,123.9,123.87,0.66]
[1766030114386,11.03767296,123.9,123.88,8.80994492]
[1766030114387,10.43767296,123.9,123.88,8.80994492]
[1766030114692,19.79773697,123.93,123.89,0.66]
[1766030115076,2.16829075,123.92,123.89,0.66]
[1766030115872,2.76829075,123.92,123.89,0.66]
[1766030116181,10.43767296,123.9,123.89,0.66]
[1766030116379,30.03880949,123.93,123.89,0.66]
[1766030116584,19.79773697,123.93,123.89,0.66]
[1766030116771,30.23540993,123.93,123.89,0.66]
[1766030117388,10.43767296,123.91,123.9,0.66]
[1766030118686,17.62944622,123.93,123.9,0.66]
[1766030118887,19.79773697,123.93,123.9,0.66]
[1766030119605,17.62944622,123.93,123.9,0.66]
[1766030120289,17.02944622,123.93,123.9,0.66]
[1766030120499,0.6,123.92,123.9,0.66]
[1766030120890,17.62944622,123.93,123.9,0.66]
[1766030122294,20.41279168,123.93,123.9,0.66]
[1766030122489,0.6,123.92,123.9,0.66]
[1766030122688,21.01279168,123.93,123.9,0.66]
[1766030123897,17.02944622,123.93,123.9,0.66]
[1766030124077,21.01279168,123.93,123.9,0.66]
[1766030124799,17.62944622,123.93,123.9,0.66]
[1766030125898,8.96,123.96,123.93,0.66]
[1766030126078,9.56,123.96,123.93,0.66]
[1766030126278,0.1,123.96,123.94,0.66]
[1766030135921,0.1,123.96,123.91,3.38334546]
[1766030136114,0.6,123.95,123.92,0.66]
[1766030136519,0.7,123.96,123.92,3.38334546]
[1766030136726,0.7,123.96,123.93,0.66]
[1766030137025,8.06776926,123.95,123.93,0.66]
[1766030138618,8.66776926,123.95,123.92,0.66]
[1766030141434,8.16738969,123.96,123.92,3.38334546]
[1766030141733,0.1,123.96,123.94,0.66]
[1766030142108,0.7,123.96,123.94,0.66]
[1766030142535,0.1,123.96,123.94,0.66]
[1766030142933,0.1,123.96,123.94,3.38334546]
[1766030143119,0.1,123.96,123.95,0.71]
[1766030143641,19.17308988,123.99,123.95,0.71]
[1766030143818,22.55643534,123.99,123.95,0.71]
[1766030144137,0.67,123.97,123.94,0.71]
[1766030145720,12.11922422,123.98,123.94,0.71]
[1766030146834,0.67,123.98,123.94,0.71]
[1766030148120,8.73584267,123.98,123.94,0.71]
[1766030149446,21.8864687,123.99,123.94,8.06834306]
[1766030149623,22.5564687,123.99,123.95,0.71]
[1766030150934,19.17312324,123.99,123.95,0.71]
[1766030151643,18.50312324,123.99,123.95,0.71]
[1766030151830,19.17312324,123.99,123.95,0.71]
[1766030152833,0.67,123.98,123.95,0.71]
[1766030153649,0.67,123.98,123.93,23.6449789]
[1766030153949,0.67,123.97,123.94,0.71]
[1766030155252,8.73654777,123.97,123.94,0.71]
[1766030159248,0.67,123.97,123.94,0.71]
[1766030161249,11.10767296,123.99,123.95,8.80994492]
[1766030161451,11.10767296,123.99,123.96,0.71]
[1766030161761,0.67,123.98,123.96,0.71]
[1766030162277,0.67,123.98,123.95,0.71]
[1766030162640,0.67,123.97,123.93,0.71]
[1766030162861,11.82223627,123.98,123.93,0.71]
[1766030163161,0.67,123.97,123.93,0.71]
[1766030163534,0.67,123.98,123.94,0.71]
[1766030166348,19.17294527,123.99,123.95,0.71]
[1766030166845,18.50294527,123.99,123.95,0.71]
[1766030167061,0.67,123.98,123.95,0.71]
[1766030167569,18.50294527,123.99,123.95,0.71]
[1766030167742,22.92915331,123.99,123.95,0.71]
[1766030167942,10.43767296,123.99,123.96,0.71]
[1766030168352,11.10767296,123.99,123.96,0.71]
[1766030169365,11.04767296,123.99,123.96,0.71]
[1766030170161,10.37767296,123.99,123.96,0.71]
[1766030170575,8.86,124.0,123.97,0.71]
[1766030170764,21.35079214,124.0,123.97,0.71]
[1766030171295,20.68079214,124.0,123.97,0.71]
[1766030171583,0.69,123.99,123.96,9.50994492]
[1766030171782,0.69,123.99,123.97,0.7]
[1766030172347,12.49146952,123.99,123.96,0.66]
[1766030178871,0.67,123.98,123.94,0.66]
[1766030179077,4.42620804,123.98,123.94,0.66]
[1766030179652,0.67,123.98,123.94,0.66]
[1766030181762,0.67,123.94,123.91,0.66]
[1766030182067,14.193881,123.95,123.91,0.66]
[1766030182374,14.863881,123.95,123.91,0.66]
[1766030183475,13.51316151,123.95,123.91,0.66]
[1766030184174,21.5809787,123.95,123.91,0.66]
[1766030184368,3.07548855,123.94,123.91,0.66]
[1766030184877,2.40548855,123.94,123.91,0.66]
[1766030185377,21.5809787,123.95,123.91,0.66]
[1766030186478,13.51316151,123.95,123.91,0.66]
[1766030187174,19.98223297,123.97,123.93,0.66]
[1766030191264,2.40548855,123.96,123.93,0.66]
[1766030191885,3.07548855,123.96,123.93,0.66]
[1766030192386,2.40548855,123.96,123.93,0.66]
[1766030192786,3.07548855,123.96,123.93,0.66]
[1766030193584,2.40548855,123.96,123.92,8.80994492]
[1766030193783,0.67,123.95,123.92,8.80994492]
[1766030193966,11.14263641,123.96,123.93,0.66]
[1766030195887,10.47263641,123.96,123.93,0.66]
[1766030196076,2.40548855,123.95,123.93,0.66]
[1766030198600,11.1434483,123.95,123.91,0.66]
[1766030198797,3.07548855,123.94,123.91,0.66]
[1766030199095,2.40548855,123.94,123.91,0.66]
[1766030199794,11.1434483,123.95,123.91,0.66]
[1766030205699,11.19302118,123.96,123.93,0.66]
[1766030206597,0.72,123.95,123.93,0.66]
[1766030206901,11.19302118,123.96,123.93,0.66]
[1766030211575,0.72,123.95,123.91,16.88012087]
[1766030211774,0.72,123.92,123.9,0.66]
[1766030212100,3.12548855,123.93,123.9,0.66]
[1766030212871,9.56,123.97,123.92,0.66]
[1766030213120,22.5738335,123.98,123.94,2.40548855]
[1766030213400,0.72,124.0,123.97,0.66]
[1766030214095,11.19003031,124.0,123.97,0.66]
[1766030216098,2.40548855,124.0,123.97,0.66]
[1766030216403,11.28964165,124.01,123.97,0.66]
[1766030216584,10.56964165,124.01,123.97,0.66]
[1766030216777,0.72,124.0,123.97,0.66]
[1766030217103,3.12548855,124.0,123.97,0.66]
[1766030217402,0.72,123.99,123.97,0.66]
[1766030217589,3.12548855,123.99,123.97,0.66]
[1766030217981,3.12548855,123.99,123.96,8.80994492]
[1766030218180,3.12548855,123.99,123.96,9.46994492]
[1766030219291,3.12548855,123.99,123.97,0.66]
[1766030219500,3.12548855,123.99,123.96,9.46994492]
[1766030224808,0.72,123.99,123.96,9.46994492]
[1766030225308,3.12548855,123.99,123.96,9.46994492]
[1766030226894,0.72,123.99,123.96,9.46994492]
[1766030227095,3.12548855,123.99,123.96,9.46994492]
[1766030227597,0.72,123.99,123.96,9.46994492]
[1766030227910,3.12548855,123.99,123.96,9.46994492]
[1766030228291,0.72,123.98,123.95,8.80994492]
[1766030228510,0.72,123.98,123.95,9.46994492]
[1766030228711,11.19072315,123.99,123.96,0.66]
[1766030229714,11.18894153,123.99,123.96,0.66]
[1766030230616,8.7852346,123.99,123.96,0.66]
[1766030231014,0.72,123.99,123.96,0.66]
[1766030235532,10.46850095,124.0,123.96,0.66]
[1766030236004,0.68,123.99,123.96,0.66]
[1766030237524,0.68,123.98,123.96,0.66]
[1766030237726,0.68,123.98,123.95,9.49994492]
[1766030237901,0.68,123.98,123.96,0.69]
[1766030238709,10.46895463,123.99,123.96,0.69]
[1766030238907,10.43767296,123.99,123.96,0.69]
[1766030239210,11.14834451,124.0,123.97,0.69]
[1766030240129,0.68,123.98,123.96,0.69]
[1766030240331,2.40370693,123.99,123.96,0.69]
[1766030240526,3.08370693,123.99,123.96,0.69]
[1766030241329,11.14904969,123.99,123.96,0.69]
[1766030245437,12.50124146,123.99,123.96,0.69]
[1766030246832,11.82124146,123.99,123.96,0.69]
[1766030247038,0.68,123.98,123.96,0.69]
[1766030247624,12.50124146,123.99,123.96,0.69]
[1766030247833,8.74534276,123.99,123.96,0.69]
[1766030248135,12.50124146,123.99,123.96,0.69]
[1766030249811,8.74534276,123.99,123.96,0.69]
[1766030250622,4.4358987,123.98,123.95,9.49994492]
[1766030251035,0.68,123.98,123.96,0.69]
[1766030252639,0.68,123.97,123.94,0.69]
[1766030253348,12.50201622,123.98,123.94,0.69]
[1766030254142,0.68,123.97,123.94,0.69]
[1766030256246,8.74682605,123.97,123.94,0.69]
[1766030259926,0.68,123.99,123.95,8.80994492]
[1766030260128,17.58451612,124.0,123.97,0.69]
[1766030260340,9.52,124.0,123.97,0.69]
[1766030261750,17.58458535,124.0,123.97,0.69]
[1766030262442,8.06458535,124.0,123.97,0.69]
[1766030263340,8.72458535,124.0,123.97,0.69]
[1766030265148,12.5800455,124.01,123.97,0.69]
[1766030267059,4.4158987,124.0,123.97,0.69]
[1766030270669,4.4158987,123.99,123.97,0.69]
[1766030271667,4.4158987,123.99,123.96,0.71]
[1766030280972,12.48112474,123.99,123.96,0.71]
[1766030281359,8.72522604,123.99,123.96,0.71]
[1766030281565,12.48112474,123.99,123.96,0.71]
[1766030282258,3.7558987,123.98,123.96,0.71]
[1766030282475,12.48112474,123.99,123.96,0.71]
[1766030284281,8.06522604,123.99,123.96,0.71]
[1766030284779,8.72522604,123.99,123.96,0.71]
[1766030286181,8.06522604,123.99,123.96,0.71]
[1766030286762,8.72522604,123.99,123.96,0.71]
[1766030289772,11.82112474,123.99,123.95,8.80994492]
[1766030289989,0.66,123.98,123.95,9.51994492]
[1766030290397,8.06522604,123.99,123.95,8.80994492]
[1766030290565,8.82414293,124.01,123.98,0.67]
[1766030290763,8.82400642,124.01,123.98,0.67]
[1766030290965,0.67,124.0,123.98,0.67]
[1766030291193,4.4258987,124.0,123.97,8.80994492]
[1766030291367,0.67,123.99,123.97,0.67]
[1766030293873,11.82154864,123.99,123.95,18.36994492]
[1766030294079,3.7558987,123.98,123.95,18.36994492]
[1766030294293,4.4158987,123.98,123.95,18.36994492]
[1766030295493,0.66,123.98,123.95,18.36994492]
[1766030295796,4.4158987,123.98,123.95,18.36994492]
[1766030296795,12.4819286,123.98,123.95,18.36994492]
[1766030297172,12.4819286,123.98,123.95,8.84]
[1766030297173,0.66,123.97,123.95,8.84]
[1766030297373,4.41655436,123.97,123.95,8.84]
[1766030297572,4.41655436,123.97,123.94,0.72]
[1766030297869,0.66,123.95,123.93,8.80994492]
[1766030298200,16.9060299,123.98,123.91,9.56]
[1766030298201,4.41655436,123.94,123.91,9.56]
[1766030298778,4.41655436,123.93,123.9,9.52994492]
[1766030302975,0.66,123.93,123.9,9.52994492]
[1766030303495,0.66,123.93,123.91,0.72]
[1766030306801,8.06936801,123.93,123.89,8.84]
[1766030307094,0.66,123.91,123.89,0.72]
[1766030307487,0.66,123.92,123.89,0.72]
[1766030307681,10.47528165,123.93,123.89,0.72]
[1766030307883,0.66,123.92,123.89,0.72]
[1766030310496,8.7284202,123.94,123.91,0.72]
[1766030310715,11.13433384,123.94,123.91,0.72]
[1766030314794,0.66,123.93,123.91,0.72]
[1766030315992,10.47433384,123.94,123.91,0.72]
[1766030316191,11.13433384,123.94,123.91,0.72]
[1766030320817,10.47433384,123.94,123.91,0.72]
[1766030321114,0.66,123.93,123.91,0.72]
[1766030321299,3.06591364,123.93,123.91,0.72]
[1766030321498,11.1350213,123.93,123.91,0.72]
[1766030322015,11.1350213,123.93,123.9,8.80994492]
[1766030322205,11.1350213,123.93,123.9,9.50994492]
[1766030323622,3.06591364,123.93,123.91,0.7]
[1766030323797,11.13506602,123.93,123.91,0.7]
[1766030324296,3.06591364,123.93,123.91,0.7]
[1766030325412,11.13526979,123.93,123.88,8.07226906]
[1766030325611,11.13526979,123.93,123.89,0.7]
[1766030326627,0.71,123.92,123.89,0.7]
[1766030327412,8.78002632,123.92,123.89,0.7]
[1766030328516,0.71,123.92,123.89,0.7]
[1766030328923,3.11591364,123.92,123.89,0.7]
[1766030332023,11.18565725,123.92,123.89,0.7]
[1766030332923,0.71,123.9,123.88,9.50994492]
[1766030333125,0.71,123.89,123.87,0.7]
[1766030333307,3.11591364,123.89,123.87,0.7]
[1766030337431,2.40591364,123.89,123.87,0.7]
[1766030338424,11.18764062,123.89,123.86,0.7]
[1766030338731,2.40591364,123.88,123.86,0.7]
[1766030339123,8.78172698,123.89,123.86,0.7]
[1766030339314,11.18764062,123.89,123.86,0.7]
[1766030348124,3.11591364,123.88,123.86,0.7]
[1766030348641,2.40591364,123.88,123.86,0.7]
[1766030349012,3.11591364,123.88,123.86,0.7]
[1766030350744,3.11591364,123.88,123.85,9.47994492]
[1766030351444,3.11591364,123.88,123.85,8.80994492]
[1766030351642,3.11591364,123.88,123.86,0.67]
[1766030352415,3.11591364,123.88,123.85,9.52994492]
[1766030352635,3.11591364,123.88,123.86,0.72]
[1766030353448,2.40591364,123.88,123.86,0.72]
[1766030353951,3.08591364,123.88,123.86,0.72]
[1766030354644,0.68,123.86,123.84,0.72]
[1766030354844,3.08591364,123.86,123.84,0.72]
[1766030355151,0.68,123.85,123.83,0.92]
[1766030355543,2.40591364,123.86,123.83,0.92]
[1766030355841,3.08591364,123.86,123.83,0.92]
[1766030356043,0.68,123.83,123.82,8.80994492]
[1766030356247,0.68,123.84,123.82,9.52994492]
[1766030356824,2.40591364,123.85,123.83,0.72]
[1766030357225,8.07406715,123.87,123.85,8.80994492]
[1766030357426,3.08591364,123.89,123.86,0.72]
[1766030357644,8.86,123.9,123.86,0.72]
[1766030357645,11.94591364,123.9,123.86,0.72]
[1766030357852,0.68,123.89,123.86,0.72]
[1766030358156,11.15787676,123.89,123.86,0.72]
[1766030359755,10.47787676,123.89,123.86,0.72]
[1766030360053,11.15787676,123.89,123.86,0.72]
[1766030364456,11.15975086,123.89,123.86,0.72]
[1766030367352,12.51424423,123.89,123.86,0.72]
[1766030369661,4.44228111,123.87,123.85,0.72]
[1766030369846,4.44228111,123.87,123.84,0.72]
[1766030371250,3.76228111,123.86,123.84,0.72]
[1766030371767,4.44228111,123.86,123.83,0.72]
[1766030373166,3.76228111,123.86,123.83,0.72]
[1766030373337,19.29767296,123.87,123.81,9.06]
[1766030373338,4.44228111,123.84,123.81,9.06]
[1766030373542,4.44228111,123.84,123.81,9.78]
[1766030373760,4.44228111,123.84,123.81,9.06]
[1766030374068,4.44228111,123.84,123.81,9.78]
[1766030375368,12.51742204,123.84,123.81,9.78]
[1766030376672,12.51742204,123.84,123.81,0.92]
[1766030377354,4.44228111,123.83,123.81,0.92]
[1766030379675,0.68,123.81,123.79,0.72]
[1766030379852,4.44228111,123.81,123.79,0.72]
[1766030380048,4.44228111,123.81,123.78,17.85772433]
[1766030380261,4.44228111,123.81,123.78,0.92]
[1766030380653,12.51934391,123.81,123.78,0.92]
[1766030383473,12.51934391,123.81,123.78,0.88]
[1766030384051,12.51934391,123.81,123.79,0.68]
[1766030387580,12.51934391,123.81,123.78,0.2]